bitfinex/quotes_SOLUSD_20251106
["timestamp","ask_amount","ask_price","bid_price","bid_amount"]
[1762438285889,0.68,159.75,159.7,6.26174076]
[1762438286091,7.4453517,159.75,159.7,13.02709246]
[1762438286611,7.4453517,159.75,159.7,13.69709246]
[1762438286911,0.68,159.75,159.7,13.69709246]
[1762438287210,13.02506812,159.76,159.7,13.69709246]
[1762438287603,6.7653517,159.76,159.71,6.7653517]
[1762438287912,13.02475409,159.76,159.7,29.35144436]
[1762438288121,13.70475409,159.76,159.7,13.69709246]
[1762438288307,6.7653517,159.75,159.7,13.69709246]
[1762438288608,6.7653517,159.74,159.7,6.26174076]
[1762438288778,0.68,159.74,159.7,6.26174076]
[1762438288984,7.4453517,159.74,159.7,6.26174076]
[1762438290506,20.592,159.71,159.64,0.62640942]
[1762438290704,20.592,159.71,159.58,0.67]
[1762438290705,6.7653517,159.65,159.59,0.67]
[1762438290907,20.592,159.69,159.59,0.67]
[1762438291201,0.68,159.7,159.61,6.7653517]
[1762438291401,6.7653517,159.67,159.61,6.7653517]
[1762438291606,6.7653517,159.67,159.61,7.4353517]
[1762438291808,6.7653517,159.68,159.62,7.4353517]
[1762438292103,6.7653517,159.67,159.62,7.4353517]
[1762438292307,6.7653517,159.66,159.63,6.26448662]
[1762438292608,6.7653517,159.7,159.63,29.36105488]
[1762438292906,6.7653517,159.71,159.64,7.4353517]
[1762438293210,6.7653517,159.7,159.64,7.4353517]
[1762438293389,6.7653517,159.71,159.65,0.67]
[1762438293591,20.592,159.74,159.65,0.67]
[1762438293592,20.592,159.74,159.66,6.7653517]
[1762438293794,6.7653517,159.69,159.65,0.67]
[1762438294416,0.68,159.72,159.66,6.26330953]
[1762438294617,4.76825526,159.7,159.66,6.26330953]
[1762438294816,4.76825526,159.71,159.66,6.26330953]
[1762438295021,4.76825526,159.7,159.66,6.26330953]
[1762438295386,4.76825526,159.71,159.66,6.26330953]
[1762438296009,0.68,159.71,159.66,0.67]
[1762438296321,5.44825526,159.71,159.66,0.67]
[1762438296487,0.68,159.71,159.66,0.67]
[1762438296690,4.76825526,159.72,159.66,5.43825526]
[1762438296885,4.76825526,159.74,159.68,4.76825526]
[1762438297183,6.96950984,159.76,159.68,4.76825526]
[1762438297387,4.76825526,159.73,159.67,5.48825526]
[1762438297610,0.71,159.75,159.65,6.26370184]
[1762438297611,4.76825526,159.7,159.65,6.26370184]
[1762438297789,4.76825526,159.7,159.65,22.64295645]
[1762438297987,4.76825526,159.71,159.67,6.26291726]
[1762438298210,4.76825526,159.72,159.68,0.72]
[1762438298513,4.76825526,159.73,159.68,0.72]
[1762438299015,0.71,159.74,159.68,0.72]
[1762438299317,4.76825526,159.73,159.68,0.72]
[1762438299517,5.47825526,159.74,159.68,5.48825526]
[1762438299811,4.76825526,159.74,159.68,5.48825526]
[1762438300015,4.76825526,159.75,159.7,6.26174076]
[1762438300211,4.76825526,159.74,159.7,6.26174076]
[1762438300917,4.76825526,159.74,159.7,6.98174076]
[1762438301130,21.302,159.79,159.71,5.48825526]
[1762438301289,5.47825526,159.79,159.73,4.76825526]
[1762438301494,0.2,159.8,159.73,4.76825526]
[1762438301708,0.91,159.8,159.74,4.76825526]
[1762438301910,4.76825526,159.79,159.74,4.76825526]
[1762438302099,4.76825526,159.79,159.75,6.2597809]
[1762438302433,4.76825526,159.79,159.74,4.76825526]
[1762438302434,4.76825526,159.78,159.74,6.26008418]
[1762438302598,5.47825526,159.79,159.74,6.98008418]
[1762438302789,0.2,159.8,159.74,26.67877139]
[1762438302992,0.2,159.8,159.75,5.48825526]
[1762438303220,0.2,159.8,159.79,4.76825526]
[1762438303607,0.2,159.8,159.79,5.48825526]
[1762438304011,0.2,159.8,159.79,11.74646916]
[1762438304903,0.2,159.8,159.77,0.62589973]
[1762438305104,5.67825526,159.8,159.73,0.72]
[1762438305304,7.16787692,159.8,159.73,0.72]
[1762438305715,0.91,159.8,159.73,5.48825526]
[1762438305921,4.76825526,159.79,159.74,4.76825526]
[1762438306100,4.76825526,159.79,159.75,6.2597809]
[1762438306502,5.47825526,159.79,159.75,6.2597809]
[1762438306723,0.2,159.8,159.75,6.9797809]
[1762438306921,4.76825526,159.78,159.75,6.2597809]
[1762438307422,4.96825526,159.8,159.76,0.72]
[1762438307799,4.76825526,159.79,159.73,6.98044888]
[1762438308004,4.76825526,159.78,159.73,11.74870414]
[1762438308229,4.76825526,159.79,159.73,11.74870414]
[1762438308423,7.16809929,159.8,159.73,11.74870414]
[1762438308424,0.91,159.8,159.74,4.76825526]
[1762438308721,0.91,159.8,159.76,4.76825526]
[1762438308722,0.2,159.8,159.76,4.76825526]
[1762438308904,0.2,159.8,159.75,5.48825526]
[1762438309105,4.96825526,159.8,159.75,5.48825526]
[1762438309300,4.96825526,159.8,159.75,4.76825526]
[1762438309496,4.96825526,159.8,159.76,0.72]
[1762438310115,4.96825526,159.8,159.76,6.97911522]
[1762438310424,4.96825526,159.8,159.76,0.72]
[1762438310601,4.96825526,159.8,159.73,15.65141175]
[1762438310602,4.76825526,159.78,159.73,6.26043206]
[1762438310806,4.76825526,159.78,159.73,11.02868732]
[1762438311029,4.76825526,159.78,159.73,11.74868732]
[1762438311222,4.76825526,159.78,159.73,4.76825526]
[1762438311521,7.16786437,159.8,159.73,11.02880829]
[1762438311724,4.76825526,159.79,159.74,5.48825526]
[1762438312027,11.93611963,159.8,159.74,5.48825526]
[1762438312320,0.91,159.8,159.75,6.2597809]
[1762438312524,4.76825526,159.79,159.75,6.2597809]
[1762438312913,4.76825526,159.79,159.74,11.74838328]
[1762438313107,4.76825526,159.78,159.74,6.98012802]
[1762438313732,5.46825526,159.79,159.74,11.74838328]
[1762438313934,4.76825526,159.79,159.75,0.7]
[1762438314246,0.2,159.8,159.75,11.72781359]
[1762438314529,0.2,159.8,159.76,4.76825526]
[1762438314732,0.2,159.8,159.76,0.7]
[1762438314925,0.2,159.8,159.75,21.90901059]
[1762438314926,0.2,159.8,159.78,4.76825526]
[1762438315343,0.2,159.8,159.79,5.46825526]
[1762438315641,0.2,159.8,159.74,7.54]
[1762438315642,0.2,159.8,159.76,0.7]
[1762438315803,0.2,159.8,159.76,4.76825526]
[1762438316003,0.2,159.8,159.76,5.46825526]
[1762438316207,0.2,159.8,159.77,6.2589973]
[1762438316407,0.2,159.8,159.77,11.02725256]
[1762438316630,0.2,159.8,159.77,11.72725256]
[1762438316854,0.2,159.8,159.78,0.7]
[1762438317219,0.2,159.8,159.78,5.46825526]
[1762438317405,0.2,159.8,159.78,0.7]
[1762438317610,0.2,159.8,159.78,4.76825526]
[1762438317826,0.2,159.8,159.79,0.7]
[1762438318134,0.2,159.8,159.79,6.2582139]
[1762438318719,0.2,159.8,159.77,11.02697331]
[1762438318934,0.2,159.8,159.77,6.25871805]
[1762438319522,0.2,159.8,159.78,0.7]
[1762438319823,0.2,159.8,159.77,11.02697331]
[1762438320030,0.2,159.8,159.78,5.46825526]
[1762438320409,0.2,159.8,159.79,11.02646916]
[1762438320604,0.2,159.8,159.79,11.72646916]
[1762438321939,1e-08,159.8,159.79,11.72646916]
[1762438322337,1e-08,159.8,159.79,6.9582139]
[1762438322526,1e-08,159.8,159.79,11.72646916]
[1762438323418,1e-08,159.8,159.79,19.24646916]
[1762438324936,1e-08,159.8,159.79,11.72646916]
[1762438325136,1e-08,159.8,159.79,19.24646916]
[1762438326030,1e-08,159.8,159.79,26.28355211]
[1762438326333,1e-08,159.8,159.79,29.03529685]
[1762438326715,1e-08,159.8,159.79,33.80355211]
[1762438326912,1e-08,159.8,159.79,29.03529685]
[1762438329936,1e-08,159.8,159.79,33.80355211]
[1762438330544,0.7,159.89,159.8,9.78882769]
[1762438330745,0.2,159.9,159.87,4.76825526]
[1762438330958,0.2,159.9,159.88,11.02294627]
[1762438331147,0.9,159.9,159.88,11.02294627]
[1762438331522,0.9,159.9,159.87,4.76825526]
[1762438331523,0.7,159.89,159.87,4.76825526]
[1762438331749,5.46825526,159.89,159.81,6.25743069]
[1762438331935,5.46825526,159.89,159.84,4.76825526]
[1762438332130,0.7,159.88,159.84,4.76825526]
[1762438332531,0.7,159.88,159.85,4.76825526]
[1762438333053,0.7,159.88,159.86,6.25547353]
[1762438333363,0.2,159.9,159.87,4.76825526]
[1762438333651,0.2,159.9,159.88,4.76825526]
[1762438333862,0.2,159.9,159.89,4.76825526]
[1762438335259,0.2,159.9,159.84,6.25625625]
[1762438335260,5.66825526,159.9,159.84,6.25625625]
[1762438335433,4.76825526,159.89,159.84,11.02451151]
[1762438335624,0.7,159.89,159.85,4.76825526]
[1762438335828,0.7,159.88,159.85,4.76825526]
[1762438336332,0.2,159.9,159.86,4.76825526]
[1762438336533,0.7,159.89,159.85,4.76825526]
[1762438336952,0.7,159.89,159.86,4.76825526]
[1762438337156,0.7,159.89,159.86,6.25538863]
[1762438337332,0.7,159.89,159.85,11.02405538]
[1762438337669,4.76825526,159.88,159.81,6.25743069]
[1762438337967,4.76825526,159.87,159.82,12.26825526]
[1762438338251,5.46825526,159.88,159.82,12.26825526]
[1762438338559,0.7,159.88,159.85,4.76825526]
[1762438338755,0.9,159.9,159.85,4.76825526]
[1762438338945,0.7,159.89,159.85,4.76825526]
[1762438339259,0.2,159.9,159.86,11.02372879]
[1762438339632,0.9,159.9,159.86,26.66241263]
[1762438340460,0.2,159.9,159.86,21.89415737]
[1762438340662,0.9,159.9,159.86,21.89415737]
[1762438340963,4.76825526,159.88,159.85,6.25586101]
[1762438341144,0.7,159.87,159.85,6.25586101]
[1762438341340,0.7,159.88,159.84,11.02451151]
[1762438341744,0.2,159.9,159.87,4.76825526]
[1762438342148,0.2,159.9,159.86,4.76825526]
[1762438342354,0.2,159.9,159.86,5.43825526]
[1762438342553,0.2,159.9,159.87,0.67]
[1762438342936,0.2,159.9,159.87,5.43825526]
[1762438343160,0.2,159.9,159.88,4.76825526]
[1762438343463,0.2,159.9,159.89,6.25429983]
[1762438344560,0.2,159.9,159.89,11.02255509]
[1762438345273,0.2,159.9,159.88,4.76825526]
[1762438345557,5.64825526,159.9,159.85,34.14378231]
[1762438345864,5.64825526,159.9,159.85,26.66378231]
[1762438346166,5.44825526,159.89,159.85,6.25586487]
[1762438346547,5.44825526,159.88,159.85,6.25586487]
[1762438346944,0.68,159.87,159.85,6.25586487]
[1762438347139,0.68,159.87,159.83,26.6665189]
[1762438347340,0.68,159.87,159.84,4.76825526]
[1762438347756,0.68,159.89,159.85,4.76825526]
[1762438348259,0.68,159.89,159.83,7.48]
[1762438348437,0.68,159.89,159.84,4.76825526]
[1762438348643,0.68,159.89,159.85,4.76825526]
[1762438348947,0.68,159.89,159.8,4.76825526]
[1762438348948,4.76825526,159.87,159.81,4.76825526]
[1762438349166,4.76825526,159.86,159.82,6.25703916]
[1762438349464,4.76825526,159.87,159.82,6.25703916]
[1762438349766,4.76825526,159.87,159.82,11.02529442]
[1762438349973,0.68,159.88,159.84,4.76825526]
[1762438350662,5.44825526,159.88,159.83,5.43825526]
[1762438350963,5.64825526,159.9,159.83,0.67]
[1762438351178,5.64825526,159.9,159.85,4.76825526]
[1762438351653,0.68,159.89,159.85,4.76825526]
[1762438351851,0.68,159.89,159.85,5.43825526]
[1762438352268,0.2,159.9,159.87,4.76825526]
[1762438352449,0.2,159.9,159.83,7.48]
[1762438352450,0.2,159.9,159.88,4.76825526]
[1762438352646,0.2,159.9,159.87,4.76825526]
[1762438353057,0.68,159.89,159.86,6.2551573]
[1762438354062,4.76825526,159.88,159.82,4.76825526]
[1762438354546,0.68,159.88,159.84,6.7286766]
[1762438355577,0.68,159.88,159.85,6.25586487]
[1762438355894,6.9286766,159.9,159.85,13.65454147]
[1762438356061,0.2,159.9,159.88,6.7286766]
[1762438356257,0.88,159.9,159.86,7.3986766]
[1762438356450,0.88,159.9,159.85,6.25586487]
[1762438356650,0.86,159.9,159.86,6.7286766]
[1762438356946,0.66,159.89,159.85,12.98454147]
[1762438357169,13.1827486,159.9,159.85,13.65454147]
[1762438357474,0.66,159.89,159.85,13.65454147]
[1762438357781,7.3886766,159.89,159.84,6.25614047]
[1762438357949,6.7286766,159.88,159.83,0.67]
[1762438358152,7.3886766,159.87,159.82,6.7286766]
[1762438358552,6.7286766,159.88,159.83,0.67]
[1762438358766,6.7286766,159.88,159.83,7.3986766]
[1762438358959,0.66,159.87,159.83,6.7286766]
[1762438359254,13.64382418,159.87,159.82,12.98540034]
[1762438359798,13.64382418,159.87,159.78,15.64558717]
[1762438359799,6.7286766,159.85,159.78,15.64558717]
[1762438359957,6.7286766,159.84,159.79,6.7286766]
[1762438360357,0.66,159.84,159.79,7.3986766]
[1762438360589,0.66,159.84,159.8,6.7286766]
[1762438360765,0.66,159.86,159.82,6.7286766]
[1762438361076,0.66,159.86,159.83,12.98532428]
[1762438361258,7.3886766,159.86,159.81,12.98598419]
[1762438361783,0.66,159.85,159.81,12.98598419]
[1762438361988,120.53548131,159.9,159.81,12.98598419]
[1762438361989,0.66,159.89,159.84,6.7286766]
[1762438362156,0.66,159.89,159.85,6.7286766]
[1762438362358,0.2,159.9,159.87,6.7286766]
[1762438362670,0.86,159.9,159.87,6.7286766]
[1762438363189,0.86,159.9,159.84,7.48]
[1762438363190,0.2,159.9,159.88,12.98336761]
[1762438363872,0.2,159.9,159.87,6.7286766]
[1762438364255,0.2,159.9,159.88,6.7286766]
[1762438364465,0.2,159.9,159.88,0.67]
[1762438364660,0.2,159.9,159.88,6.7286766]
[1762438365062,0.86,159.9,159.86,12.98415013]
[1762438365361,0.2,159.9,159.88,6.7286766]
[1762438365560,0.2,159.9,159.89,6.7286766]
[1762438365982,0.2,159.9,159.88,6.7286766]
[1762438366167,0.2,159.9,159.89,6.7286766]
[1762438366985,0.2,159.9,159.86,12.98415013]
[1762438366986,0.86,159.9,159.86,12.98415013]
[1762438367372,0.66,159.89,159.86,12.98415013]
[1762438367569,0.86,159.9,159.86,12.98415013]
[1762438367955,0.2,159.9,159.86,6.92547353]
[1762438368186,0.86,159.9,159.87,6.7286766]
[1762438368363,0.86,159.9,159.86,12.98415013]
[1762438368566,0.86,159.9,159.86,13.65415013]
[1762438368764,0.2,159.9,159.87,7.3986766]
[1762438368963,0.86,159.9,159.86,12.98415013]
[1762438369374,0.86,159.9,159.87,6.7286766]
[1762438369566,0.86,159.9,159.88,6.7286766]
[1762438369968,0.2,159.9,159.88,6.7286766]
[1762438370378,0.2,159.9,159.89,6.7286766]
[1762438370972,0.2,159.9,159.89,13.65297643]
[1762438371669,1e-08,159.9,159.89,24.0672341]
[1762438372169,1e-08,159.9,159.89,21.13297643]
[1762438372990,1e-08,159.9,159.89,20.46297643]
[1762438373291,1e-08,159.9,159.87,16.26247615]
[1762438373292,0.66000001,159.9,159.79,31.29106952]
[1762438373496,6.7286766,159.88,159.83,6.7286766]
[1762438373693,6.7286766,159.87,159.82,6.7286766]
[1762438373896,1e-08,159.9,159.82,6.7286766]
[1762438374068,0.66,159.89,159.83,6.7286766]
[1762438374271,6.7286766,159.88,159.83,6.7286766]
[1762438374789,1e-08,159.9,159.82,6.7286766]
[1762438374790,7.3886766,159.87,159.82,6.7286766]
[1762438374990,0.66,159.87,159.82,6.7286766]
[1762438375199,0.66,159.87,159.83,12.98532428]
[1762438375372,7.3886766,159.87,159.83,6.25664768]
[1762438375980,0.66,159.86,159.83,6.25664768]
[1762438377090,6.7286766,159.87,159.83,6.25664768]
[1762438377476,7.3886766,159.87,159.83,6.25664768]
[1762438377878,0.66,159.87,159.83,12.98532428]
[1762438378687,0.66,159.87,159.84,6.7286766]
[1762438379094,7.3886766,159.89,159.85,6.25586487]
[1762438379297,0.66,159.88,159.85,6.25586487]
[1762438380598,110.95402379,159.9,159.79,10.41464908]
[1762438380599,0.66,159.87,159.79,10.41464908]
[1762438380774,21.252,159.87,159.78,0.66]
[1762438380970,20.592,159.85,159.75,0.66]
[1762438381176,9.78882769,159.88,159.75,7.3886766]
[1762438381177,6.7286766,159.8,159.75,7.3886766]
[1762438381477,6.25625625,159.84,159.77,6.7286766]
[1762438381478,6.7286766,159.82,159.77,6.7286766]
[1762438381682,6.7286766,159.82,159.76,6.7286766]
[1762438381894,7.3886766,159.82,159.76,6.7286766]
[1762438382187,6.7286766,159.81,159.76,6.7286766]
[1762438382491,6.7286766,159.83,159.78,6.7286766]
[1762438382696,0.66,159.85,159.81,6.7286766]
[1762438382870,7.3886766,159.89,159.83,6.7286766]
[1762438383070,0.66,159.89,159.86,6.25547353]
[1762438383292,0.66,159.89,159.85,12.9845053]
[1762438383884,0.66,159.89,159.85,6.2558287]
[1762438384078,7.3886766,159.89,159.84,6.25617602]
[1762438384296,6.7286766,159.88,159.84,6.25617602]
[1762438384976,0.66,159.89,159.84,12.98485262]
[1762438384977,7.3886766,159.89,159.84,12.98485262]
[1762438385174,13.64311295,159.89,159.84,12.98485262]
[1762438385498,13.64311295,159.89,159.81,23.12262177]
[1762438385499,6.7286766,159.87,159.81,23.12262177]
[1762438385667,0.66,159.88,159.84,6.7286766]
[1762438385865,1e-08,159.9,159.86,6.7286766]
[1762438386071,1e-08,159.9,159.87,6.7286766]
[1762438386598,0.66000001,159.9,159.86,6.7286766]
[1762438386787,0.66000001,159.9,159.89,6.7286766]
[1762438386788,1e-08,159.9,159.89,6.7286766]
[1762438387178,1e-08,159.9,159.89,13.64297643]
[1762438387384,1e-08,159.9,159.89,21.12297643]
[1762438387895,1e-08,159.9,159.89,14.39429983]
[1762438388094,1e-08,159.9,159.89,21.12297643]
[1762438389888,1e-08,159.9,159.88,12.98336064]
[1762438390086,1e-08,159.9,159.88,6.25468404]
[1762438390400,1e-08,159.9,159.88,12.98336064]
[1762438390799,0.66,159.89,159.86,12.98410036]
[1762438391001,0.66,159.89,159.86,6.25542376]
[1762438391204,1e-08,159.9,159.86,12.98410036]
[1762438391505,1e-08,159.9,159.87,7.3886766]
[1762438391705,1e-08,159.9,159.89,6.7286766]
[1762438391998,1e-08,159.9,159.89,7.3886766]
[1762438392998,1e-08,159.9,159.89,14.8686766]
[1762438393507,1e-08,159.9,159.89,21.12297643]
[1762438393712,1e-08,159.9,159.89,6.25429983]
[1762438394000,0.66000001,159.9,159.85,12.98454147]
[1762438394300,0.66000001,159.9,159.87,6.7286766]
[1762438394301,1e-08,159.9,159.87,6.7286766]
[1762438394599,1e-08,159.9,159.88,6.7286766]
[1762438394827,7.3886766,159.89,159.81,8.14]
[1762438395111,7.3886766,159.89,159.84,6.7286766]
[1762438395277,7.3886766,159.89,159.84,12.9845789]
[1762438395474,0.66,159.88,159.84,6.2559023]
[1762438395701,7.3886766,159.88,159.84,6.2559023]
[1762438396180,0.66,159.88,159.84,6.2559023]
[1762438396996,0.66,159.88,159.83,6.7286766]
[1762438397200,6.7286766,159.87,159.82,6.25696027]
[1762438397375,7.3886766,159.88,159.82,12.98563687]
[1762438397575,6.7286766,159.88,159.83,6.7286766]
[1762438397780,7.3886766,159.88,159.83,6.7286766]
[1762438397987,6.7286766,159.88,159.83,6.7286766]
[1762438398198,7.3886766,159.88,159.83,6.7286766]
[1762438398907,0.66,159.87,159.83,6.7286766]
[1762438399283,111.4286766,159.89,159.83,6.7286766]
[1762438399511,112.0886766,159.89,159.84,12.98493285]
[1762438399688,7.3886766,159.88,159.83,12.98522141]
[1762438399889,6.7286766,159.87,159.83,6.25654481]
[1762438400098,7.3886766,159.87,159.83,6.25654481]
[1762438400507,7.3886766,159.87,159.82,6.7286766]
[1762438400710,7.3886766,159.87,159.82,13.64563919]
[1762438400906,0.66,159.87,159.82,13.64563919]
[1762438401105,7.3886766,159.87,159.82,13.64563919]
[1762438401403,0.66,159.87,159.83,6.7286766]
[1762438402411,110.95441193,159.89,159.84,6.7286766]
[1762438402412,112.0886766,159.89,159.84,6.7286766]
[1762438402711,105.36,159.89,159.84,6.7286766]
[1762438403098,112.0886766,159.89,159.84,6.7286766]
[1762438403495,0.66,159.88,159.84,6.7286766]
[1762438403990,104.7,159.89,159.84,12.98487708]
[1762438404307,0.66,159.88,159.84,13.69487708]
[1762438406190,0.66,159.88,159.84,6.25620048]
[1762438407319,7.3886766,159.88,159.84,6.25620048]
[1762438407516,0.66,159.88,159.84,6.25620048]
[1762438407689,0.66,159.88,159.84,6.7286766]
[1762438408512,104.7,159.89,159.86,6.7286766]
[1762438409093,104.7,159.89,159.87,6.7286766]
[1762438409710,104.7,159.89,159.86,13.69412956]
[1762438410291,104.7,159.89,159.87,6.7286766]
[1762438410622,104.7,159.89,159.88,6.7286766]
[1762438410820,104.7,159.89,159.87,6.7286766]
[1762438411135,1e-08,159.9,159.88,6.7286766]
[1762438411297,0.66000001,159.9,159.86,12.98412956]
[1762438411617,0.66000001,159.9,159.85,6.7286766]
[1762438411818,0.66000001,159.9,159.86,6.7286766]
[1762438412034,0.66000001,159.9,159.86,7.4386766]
[1762438412319,0.66000001,159.9,159.86,6.7286766]
[1762438412727,0.66000001,159.9,159.87,6.7286766]
[1762438413812,0.66000001,159.9,159.88,6.25469101]
[1762438414018,1e-08,159.9,159.88,6.25469101]
[1762438414329,1e-08,159.9,159.87,6.7286766]
[1762438414544,0.66000001,159.9,159.86,28.62271944]
[1762438414744,0.66000001,159.9,159.87,6.7286766]
[1762438414930,1e-08,159.9,159.87,6.7286766]
[1762438415432,0.66000001,159.9,159.87,6.7286766]
[1762438415635,13.6425945,159.9,159.86,6.255359]
[1762438415811,6.7286766,159.89,159.84,12.98473109]
[1762438416016,7.3886766,159.89,159.84,12.98473109]
[1762438416343,0.66,159.88,159.84,6.25605449]
[1762438416527,0.66,159.88,159.84,11.01322674]
[1762438417226,4.75717225,159.87,159.82,12.23717225]
[1762438417427,104.7,159.86,159.82,4.75717225]
[1762438417643,105.37,159.86,159.82,11.0141348]
[1762438417945,104.7,159.86,159.84,4.75717225]
[1762438418317,104.7,159.86,159.83,4.75717225]
[1762438418856,104.7,159.86,159.84,4.75717225]
[1762438419351,104.7,159.86,159.84,11.01304559]
[1762438420928,104.7,159.86,159.85,5.46717225]
[1762438421241,104.7,159.86,159.85,11.01303712]
[1762438422051,104.7,159.86,159.85,0.71]
[1762438422249,104.7,159.86,159.85,11.72303712]
[1762438423035,1e-08,159.9,159.85,28.99186481]
[1762438423258,1e-08,159.9,159.89,4.75717225]
[1762438424131,1e-08,159.9,159.89,11.01147208]
[1762438425254,0.67000001,159.9,159.89,6.25429983]
[1762438425433,1e-08,159.9,159.89,6.25429983]
[1762438425635,1e-08,159.9,159.89,11.01147208]
[1762438428152,1e-08,159.9,159.88,6.25455831]
[1762438428370,1e-08,159.9,159.88,8.08006277]
[1762438428738,1e-08,159.9,159.89,1.82550446]
[1762438429550,1e-08,159.9,159.88,6.25455831]
[1762438429869,1e-08,159.9,159.89,2.53550446]
[1762438430258,1e-08,159.9,159.89,12.94976213]
[1762438430429,0.2,159.91,159.89,12.94976213]
[1762438430634,0.2,159.91,159.9,18.57824084]
[1762438431577,0.2,159.91,159.9,6.25390869]
[1762438431935,0.87,159.91,159.87,1.82550446]
[1762438432135,0.67,159.9,159.87,1.82550446]
[1762438432357,0.67,159.9,159.87,4.75490849]
[1762438432554,0.67,159.9,159.87,11.00999074]
[1762438433259,0.2,159.91,159.89,4.75490849]
[1762438433465,0.2,159.91,159.9,4.75490849]
[1762438434754,0.2,159.91,159.9,5.46490849]
[1762438434956,0.2,159.91,159.9,11.71881718]
[1762438435273,105.58,159.95,159.9,58.62313237]
[1762438435274,0.2,159.95,159.9,58.62313237]
[1762438435439,0.2,159.95,159.94,4.75490849]
[1762438435942,0.2,159.95,159.94,5.46490849]
[1762438436545,0.2,159.95,159.94,12.94490849]
[1762438437480,0.2,159.95,159.94,19.19725311]
[1762438440750,0.2,159.95,159.94,28.9860808]
[1762438441458,1e-08,159.95,159.94,28.9860808]
[1762438441672,1e-08,159.96,159.95,10.49882769]
[1762438441848,1e-08,159.96,159.95,15.87893155]
[1762438443148,1e-08,159.98,159.97,9.78882769]
[1762438443445,1e-08,159.98,159.97,28.27490827]
[1762438443654,1e-08,159.98,159.97,28.98490827]
[1762438444248,1e-08,159.98,159.97,6.25117209]
[1762438444471,5.4349085,159.98,159.9,21.88868042]
[1762438444650,4.75490849,159.94,159.9,21.88868042]
[1762438445262,4.75490849,159.92,159.89,6.25419455]
[1762438445467,4.75490849,159.91,159.89,6.25419455]
[1762438445652,1e-08,159.98,159.9,12.92490849]
[1762438445855,0.68000001,159.98,159.91,9.78882769]
[1762438446080,0.68000001,159.98,159.93,4.75490849]
[1762438446287,0.68000001,159.98,159.93,12.92490849]
[1762438446681,0.68000001,159.98,159.94,4.75490849]
[1762438447591,1e-08,159.98,159.96,4.75490849]
[1762438447757,1e-08,159.98,159.95,27.34674655]
[1762438448793,1e-08,159.98,159.96,5.46490849]
[1762438449077,1e-08,159.98,159.97,4.75490849]
[1762438449451,1e-08,159.98,159.97,11.71608058]
[1762438449851,1e-08,159.98,159.97,6.25117209]
[1762438450592,1e-08,159.98,159.97,11.71608058]
[1762438451183,1e-08,159.98,159.97,6.25117209]
[1762438452387,1e-08,159.98,159.97,11.00608058]
[1762438452766,1e-08,159.98,159.97,6.25117209]
[1762438452964,1e-08,159.98,159.97,11.00608058]
[1762438453952,1e-08,159.98,159.97,11.71608058]
[1762438456354,1e-08,159.98,159.97,11.00608058]
[1762438456764,1e-08,159.98,159.97,6.25117209]
[1762438457270,0.68000001,159.98,159.96,6.25145602]
[1762438457867,1e-08,159.98,159.96,6.25145602]
[1762438461799,0.68,159.97,159.96,6.25145602]
[1762438462170,0.68,159.97,159.95,15.62988433]
[1762438463393,0.68,159.97,159.94,6.25234462]
[1762438463598,4.75490849,159.95,159.92,6.2530428]
[1762438463767,4.75490849,159.93,159.86,0.7]
[1762438463972,4.75490849,159.91,159.86,0.7]
[1762438464204,4.75490849,159.91,159.88,15.63661595]
[1762438464489,5.47490849,159.91,159.88,15.63661595]
[1762438464708,0.72,159.93,159.88,16.33661595]
[1762438464987,0.72,159.93,159.88,15.63661595]
[1762438464988,5.47490849,159.93,159.88,15.63661595]
[1762438465172,5.47490849,159.93,159.88,20.39152444]
[1762438465380,104.7,159.96,159.9,4.75490849]
[1762438465381,0.72,159.95,159.9,4.75490849]
[1762438465886,5.47490849,159.95,159.89,5.45490849]
[1762438466389,5.47490849,159.95,159.9,26.64358891]
[1762438466794,0.72,159.94,159.9,21.88868042]
[1762438467005,4.75490849,159.93,159.9,6.25390869]
[1762438467373,5.47490849,159.94,159.9,6.25390869]
[1762438468077,0.72,159.93,159.89,21.8900494]
[1762438468806,5.47490849,159.93,159.89,21.8900494]
[1762438468977,4.75490849,159.92,159.89,21.8900494]